fUST/lending_fUST_20260330
["ID","MTS","AMOUNT","RATE_DAILY","PERIOD"]
[419052883,1774813843948,-151.0,0.00021918,2]
[419052885,1774813843958,-2678.951458,0.00021918,2]
[419052887,1774813843968,-199.362089,0.00021918,2]
[419052889,1774813843978,-151.0,0.00021918,2]
[419052891,1774813843990,-183.617463,0.00021918,2]
[419052893,1774813844000,-151.0,0.00021918,2]
[419052895,1774813844009,-151.0,0.00021918,2]
[419052897,1774813844019,-151.0,0.00021918,2]
[419052899,1774813844028,-276.124297,0.00021918,2]
[419052901,1774813844038,-4468.27232,0.00021918,2]
[419052904,1774813844053,-4468.27232,0.00021918,2]
[419052906,1774813844063,-4468.27232,0.00021918,2]
[419052907,1774813844073,-4468.27232,0.00021918,2]
[419052909,1774813844082,-4468.27232,0.00021918,2]
[419052911,1774813844092,-4468.27232,0.00021918,2]
[419052913,1774813844101,-4468.27232,0.00021918,2]
[419052915,1774813844111,-4468.27232,0.00021918,2]
[419052917,1774813844120,-554.719632,0.00021918,2]
[419052919,1774813844130,-554.719632,0.00021918,2]
[419052921,1774813844140,-554.719632,0.00021918,2]
[419052923,1774813844149,-554.719632,0.00021918,2]
[419052925,1774813844158,-554.719632,0.00021918,2]
[419052927,1774813844168,-554.719632,0.00021918,2]
[419052929,1774813844178,-212.255766,0.00021918,2]
[419052931,1774813844187,-212.255766,0.00021918,2]
[419052933,1774813844197,-212.255766,0.00021918,2]
[419052935,1774813844206,-212.255766,0.00021918,2]
[419052937,1774813844215,-212.255766,0.00021918,2]
[419052939,1774813844224,-212.255766,0.00021918,2]
[419052941,1774813844234,-212.255766,0.00021918,2]
[419052943,1774813844243,-212.255766,0.00021918,2]
[419052945,1774813844252,-554.719632,0.00021918,2]
[419052947,1774813844261,-554.719632,0.00021918,2]
[419052949,1774813844270,-656.259195,0.00021918,2]
[419052951,1774813844279,-656.259195,0.00021918,2]
[419052954,1774813844289,-656.259195,0.00021918,2]
[419052956,1774813844298,-656.259195,0.00021918,2]
[419052958,1774813844307,-656.259195,0.00021918,2]
[419052960,1774813844317,-656.259195,0.00021918,2]
[419052962,1774813844326,-656.259195,0.00021918,2]
[419052964,1774813844335,-656.259195,0.00021918,2]
[419052966,1774813844345,-170.750984,0.00021918,2]
[419052968,1774813844354,-170.750984,0.00021918,2]
[419052970,1774813844363,-170.750984,0.00021918,2]
[419052972,1774813844373,-170.750984,0.00021918,2]
[419052974,1774813844382,-170.750984,0.00021918,2]
[419052976,1774813844391,-170.750984,0.00021918,2]
[419052978,1774813844400,-170.750984,0.00021918,2]
[419052980,1774813844409,-170.750984,0.00021918,2]
[419052982,1774813844418,-151.0,0.00021918,2]
[419052984,1774813844427,-151.0,0.00021918,2]
[419052986,1774813844437,-605.245498,0.00021918,2]
[419052988,1774813844446,-605.245498,0.00021918,2]
[419052990,1774813844455,-605.245498,0.00021918,2]
[419052992,1774813844464,-605.245498,0.00021918,2]
[419052994,1774813844473,-605.245498,0.00021918,2]
[419052996,1774813844482,-605.245498,0.00021918,2]
[419052998,1774813844491,-605.245498,0.00021918,2]
[419053000,1774813844500,-605.245498,0.00021918,2]
[419053002,1774813844510,-222.884288,0.00021918,2]
[419053003,1774813844520,-222.884288,0.00021918,2]
[419053005,1774813844529,-222.884288,0.00021918,2]
[419053007,1774813844538,-222.884288,0.00021918,2]
[419053009,1774813844548,-222.884288,0.00021918,2]
[419053011,1774813844558,-222.884288,0.00021918,2]
[419053013,1774813844567,-222.884288,0.00021918,2]
[419053015,1774813844576,-222.884288,0.00021918,2]
[419053017,1774813844585,-615.009273,0.00021918,2]
[419053019,1774813844595,-615.009273,0.00021918,2]
[419053021,1774813844604,-615.009273,0.00021918,2]
[419053023,1774813844613,-615.009273,0.00021918,2]
[419053025,1774813844623,-615.009273,0.00021918,2]
[419053027,1774813844631,-615.009273,0.00021918,2]
[419053029,1774813844640,-615.009273,0.00021918,2]
[419053031,1774813844650,-615.009273,0.00021918,2]
[419053033,1774813844659,-1612.936383,0.00021918,2]
[419053035,1774813844669,-1612.936383,0.00021918,2]
[419053037,1774813844678,-1612.936383,0.00021918,2]
[419053039,1774813844687,-1612.936383,0.00021918,2]
[419053041,1774813844697,-1612.936383,0.00021918,2]
[419053043,1774813844706,-1612.936383,0.00021918,2]
[419053045,1774813844715,-151.0,0.00021918,2]
[419053047,1774813844725,-151.0,0.00021918,2]
[419053049,1774813844734,-1612.936383,0.00021918,2]
[419053051,1774813844744,-1612.936383,0.00021918,2]
[419053053,1774813844752,-151.0,0.00021918,2]
[419053055,1774813844762,-151.0,0.00021918,2]
[419053057,1774813844771,-151.0,0.00021918,2]
[419053059,1774813844781,-151.0,0.00021918,2]
[419053061,1774813844790,-161.668369,0.00021918,2]
[419053071,1774813844875,-151.0,0.00021918,2]
[419053073,1774813844885,-290.560722,0.00021918,2]
[419053075,1774813844895,-1412.306439,0.00021918,2]
[419053077,1774813844905,-1412.306439,0.00021918,2]
[419053079,1774813844915,-427.5988,0.00021918,3]
[419053081,1774813844924,-373.3367,0.00021918,3]
[419053083,1774813844933,-214.85,0.00021918,3]
[419053084,1774813844943,-150.41127165,0.00021973,2]
[419053086,1774813844952,-500.0,0.00021973,2]
[419053088,1774813844961,-500.0,0.00021973,2]
[419053090,1774813844971,-500.0,0.00021973,2]
[419053092,1774813844980,-575.09922602,0.00021973,2]
[419053094,1774813844989,-500.0,0.00021973,2]
[419053096,1774813844998,-500.0,0.00021973,2]
[419053098,1774813845009,-498.23599929,0.00021973,2]
[419053100,1774813845019,-500.0,0.00021973,2]
[419053102,1774813845028,-500.0,0.00021973,2]
[419053104,1774813845038,-500.0,0.00021973,2]
[419053106,1774813845047,-500.0,0.00021973,2]
[419053108,1774813845057,-500.0,0.00021973,2]
[419053109,1774813845066,-349.90486997,0.00021973,2]
[419053110,1774813845075,-500.0,0.00021973,2]
[419053111,1774813845084,-500.0,0.00021973,2]
[419053112,1774813845094,-500.0,0.00021973,2]
[419053113,1774813845104,-829801.14250184,0.00022,2]
[419053114,1774813845210,-122.3725703,0.00019,2]
[419053256,1774813846872,-877.6274297,0.00019,2]
[419053258,1774813846882,-1000.0,0.000195,2]
[419053259,1774813846892,-451.55765898,0.0002,2]
[419053280,1774813847085,-548.44234102,0.0002,2]
[419053282,1774813847095,-151.0,0.00021918,2]
[419053284,1774813847105,-151.0,0.00021918,2]
[419053286,1774813847114,-151.0,0.00021918,2]
[419053288,1774813847124,-2308.44644035,0.00022,2]
[419053290,1774813847136,-413.28111566,0.00022,2]
[419053756,1774815031766,-1893.47374642,5e-05,2]
[419053757,1774815031776,-279.64018917,7.574e-05,2]
[419053759,1774815031818,-490.57899851,7.574e-05,2]
[419053761,1774815031828,-1049.61549675,7.574e-05,2]
[419053762,1774815031838,-3180.16531557,7.574e-05,2]
[419053763,1774815031847,-325.1806037,7.65e-05,2]
[419053764,1774815031855,-528.0,7.65e-05,2]
[419053765,1774815031863,-464.17388846,8.48e-05,2]
[419053766,1774815031874,-186.396651,0.0001,2]
[419053767,1774815031884,-11410.45335115,0.000125,2]
[419053768,1774815032001,-5000.0,0.00012546,2]
[419053769,1774815032011,-19152.51394823,0.00013,2]
[419053770,1774815032021,-885.50392279,0.00013599,2]
[419053771,1774815032031,-1000.0,0.00013699,2]
[419053772,1774815032040,-2743.227142,0.00014821,2]
[419053773,1774815032051,-15380.3736,0.00015021,2]
[419053774,1774815032061,-1000.0,0.00015469,2]
[419053775,1774815032071,-439.0,0.0001673,2]
[419053776,1774815032082,-184.0,0.0001673,2]
[419053777,1774815032092,-5000.0,0.00016999,2]
[419053778,1774815032102,-22484.19996662,0.00017,2]
[419053779,1774815032114,-5011.54112316,0.00017,2]
[419053780,1774815032128,-4241.16229883,0.00017,2]
[419054048,1774815040817,-604.0,0.00015277,2]
[419054054,1774815040875,-281.50392279,0.00015277,2]
[419054057,1774815040888,-1186.89607721,0.0001683,2]
[419054328,1774815043394,-250.820863,0.0001683,2]
[419054588,1774815046245,-4028.50397164,0.00016662,2]
[419054590,1774815046257,-3562.28305979,0.0001683,2]
[419054592,1774815046270,-885.50392279,0.00016955,2]
[419054595,1774815046281,-579.84144298,0.00016999,2]
[419054597,1774815046291,-499.79333429,0.00016999,2]
[419054599,1774815046304,-80750.07919938,0.00017,2]
[419054601,1774815046315,-575.9482896,0.00017476,2]
[419054603,1774815046327,-5012.47619491,0.00018,2]
[419054606,1774815046338,-185.59254689,0.00018097,2]
[419054608,1774815046350,-500.0,0.00018097,2]
[419054610,1774815046361,-806.77269809,0.00018097,2]
[419054612,1774815046372,-806.77269809,0.00018097,2]
[419054614,1774815046384,-335.90240062,0.00018097,2]
[419054617,1774815046395,-806.77269809,0.00018097,2]
[419054619,1774815046408,-806.77269809,0.00018097,2]
[419054621,1774815046419,-806.77269809,0.00018097,2]
[419054623,1774815046429,-806.77269809,0.00018097,2]
[419054625,1774815046439,-806.77269809,0.00018097,2]
[419054627,1774815046449,-806.77269809,0.00018097,2]
[419054629,1774815046459,-806.77269809,0.00018097,2]
[419054646,1774815046604,-806.77269809,0.00018097,2]
[419054648,1774815046618,-511.43993339,0.00018097,2]
[419055064,1774816232399,-517.75085583,0.00011809,2]
[419055065,1774816232411,-2584.1533961,0.00011809,2]
[419055066,1774816232423,-1898.09574807,0.00011809,2]
[419055067,1774816232433,-2584.1533961,0.00011928,2]
[419055068,1774816232445,-853.624,0.00011928,2]
[419055069,1774816232457,-1562.2226039,0.00011928,2]
[419055070,1774816232467,-200.8808167,0.00011948,2]
[419055071,1774816232477,-2327.99249431,0.00012048,2]
[419055072,1774816232489,-14482.16818062,0.00012048,2]
[419055340,1774816241203,-22892.59066988,0.00012048,2]
[419055353,1774816241317,-9965.47914543,0.00012048,2]
[419055581,1774816244116,-15905.36719607,0.00012048,2]
[419055582,1774816244126,-590.0,0.00012048,2]
[419055583,1774816244136,-317.811,0.00012928,2]
[419055584,1774816244146,-1000.0,0.00013699,2]
[419055585,1774816244156,-6928.07534242,0.00015205,2]
[419055592,1774816246242,-297.68565312,0.00011928,2]
[419055594,1774816246252,-3071.92465758,0.00015205,2]
[419055595,1774816246262,-207.469901,0.00015713,2]
[419055596,1774816246271,-213.65,0.000166,2]
[419055598,1774816246281,-4849.95111593,0.000166,2]
[419055599,1774816246293,-45150.04888407,0.000166,2]
[419055600,1774816246302,-184.0,0.00016689,2]
[419055601,1774816246312,-439.0,0.00016689,2]
[419055602,1774816246322,-453.65512679,0.000178,18]
[419055603,1774816246331,-1027.52287533,0.000178,18]
[419055604,1774816246341,-1065.25559065,0.000178,18]
[419055605,1774816246351,-929.0437403,0.000178,18]
[419055606,1774816246361,-6326.31434688,0.00017825,2]
[419055607,1774816246371,-200.88081669,0.00018012,2]
[419055608,1774816246381,-151.0,0.00018025,2]
[419055609,1774816246390,-5000.0,0.00018097,2]
[419055610,1774816246400,-89739.29770457,0.00018098,2]
[419055677,1774817432215,-283.624,9.9e-05,2]
[419055678,1774817432227,-284.79628156,9.9e-05,2]
[419055888,1774817438506,-431.87462275,9.9e-05,2]
[419055890,1774817438518,-3999.70509569,9.9e-05,2]
[419055892,1774817438528,-6965.63,0.0001,2]
[419055894,1774817438538,-5000.0,0.0001264,2]
[419055896,1774817438548,-599.0,0.0001264,2]
[419055898,1774817438558,-1000.0,0.00013699,2]
[419055900,1774817438568,-13078.5250056,0.00016038,2]
[419055902,1774817438578,-1000.0,0.00016053,2]
[419055904,1774817438588,-312.0,0.00017852,2]
[419055906,1774817438598,-553.43995177,0.00017895,2]
[419055908,1774817438608,-600.0,0.0001798,2]
[419055910,1774817438618,-600.0,0.0001798,3]
[419055912,1774817438627,-344.649,0.00017995,2]
[419055914,1774817438637,-5000.0,0.00017995,2]
[419055916,1774817438647,-50000.0,0.00017995,2]
[419055918,1774817438657,-500.0,0.00017996,2]
[419055920,1774817438666,-903.97586228,0.00017996,2]
[419055922,1774817438677,-903.97586228,0.00017996,2]
[419055924,1774817438687,-215.16933036,0.00017996,2]
[419055926,1774817438697,-903.97586228,0.00017996,2]
[419055928,1774817438707,-903.97586228,0.00017996,2]
[419055930,1774817438717,-903.97586228,0.00017996,2]
[419055932,1774817438726,-903.97586228,0.00017996,2]
[419055934,1774817438736,-903.97586228,0.00017996,2]
[419055936,1774817438746,-903.97586228,0.00017996,2]
[419055938,1774817438756,-903.97586228,0.00017996,2]
[419055940,1774817438766,-903.97586228,0.00017996,2]
[419055942,1774817438775,-903.97586228,0.00017996,2]
[419055944,1774817438785,-903.97586228,0.00017996,2]
[419055946,1774817438795,-903.97586228,0.00017996,2]
[419055948,1774817438804,-903.97586228,0.00017996,2]
[419055950,1774817438813,-903.97586228,0.00017996,2]
[419055951,1774817438823,-903.97586228,0.00017996,2]
[419055953,1774817438833,-903.97586228,0.00017996,2]
[419055975,1774817439038,-903.97586228,0.00017996,2]
[419055976,1774817439048,-922.05537953,0.00017996,2]
[419055977,1774817439059,-922.05537953,0.00017996,2]
[419055978,1774817439069,-922.05537953,0.00017996,2]
[419055979,1774817439080,-922.05537953,0.00017996,2]
[419055980,1774817439090,-922.05537953,0.00017996,2]
[419055981,1774817439099,-922.05537953,0.00017996,2]
[419055982,1774817439109,-922.05537953,0.00017996,2]
[419055983,1774817439119,-922.05537953,0.00017996,2]
[419055984,1774817439128,-922.05537953,0.00017996,2]
[419055985,1774817439138,-922.05537953,0.00017996,2]
[419055986,1774817439148,-19084.15437388,0.00017997,2]
[419055987,1774817439162,-1320.37972324,0.00017997,2]
[419056320,1774817443781,-5000.0,0.00017816,2]
[419056321,1774817443791,-7412.2675519,0.00017997,2]
[419056486,1774818632430,-5000.0,0.00012265,2]
[419056487,1774818632440,-5000.0,0.00012389,2]
[419056488,1774818632449,-597.0,0.00012514,2]
[419056489,1774818632459,-1000.0,0.00013699,2]
[419056490,1774818632469,-356.77981059,0.00015,2]
[419056491,1774818632478,-439.0,0.00016669,2]
[419056492,1774818632488,-184.0,0.00016669,2]
[419056493,1774818632497,-1371.613571,0.0001686,2]
[419056494,1774818632507,-484.25995779,0.00017694,2]
[419056495,1774818632517,-333.0,0.00017731,2]
[419056496,1774818632527,-422.2120955,0.00017794,2]
[419056497,1774818632537,-500.61853125,0.00017794,2]
[419056498,1774818632547,-649.05466912,0.00017794,2]
[419056499,1774818632557,-649.05466912,0.00017794,2]
[419056500,1774818632566,-649.05466912,0.00017794,2]
[419056501,1774818632576,-649.05466912,0.00017794,2]
[419056502,1774818632585,-649.05466912,0.00017794,2]
[419056503,1774818632595,-649.05466912,0.00017794,2]
[419056504,1774818632604,-649.05466912,0.00017794,2]
[419056505,1774818632614,-649.05466912,0.00017794,2]
[419056506,1774818632623,-649.05466912,0.00017794,2]
[419056507,1774818632633,-649.05466912,0.00017794,2]
[419056508,1774818632642,-649.05466912,0.00017794,2]
[419056509,1774818632651,-649.05466912,0.00017794,2]
[419056510,1774818632661,-618.91731883,0.00017794,2]
[419056511,1774818632677,-30.13735029,0.00017794,2]
[419056512,1774818632686,-649.05466912,0.00017794,2]
[419056513,1774818632696,-649.05466912,0.00017794,2]
[419056514,1774818632705,-252.01576706,0.00017794,2]
[419056515,1774818632717,-397.03890206,0.00017794,2]
[419056516,1774818632726,-649.05466912,0.00017794,2]
[419056517,1774818632735,-649.05466912,0.00017794,2]
[419056518,1774818632745,-649.05466912,0.00017794,2]
[419056519,1774818632754,-670.68982476,0.00017794,2]
[419056520,1774818632763,-78.16672434,0.00017794,2]
[419056528,1774818638571,-422.2120955,0.00017616,2]
[419056535,1774818638629,-4577.7879045,0.00017616,2]
[419056537,1774818638639,-592.52310042,0.00017794,2]
[419056539,1774818638648,-670.68982476,0.00017794,2]
[419056541,1774818638657,-670.68982476,0.00017794,2]
[419056543,1774818638666,-670.68982476,0.00017794,2]
[419056545,1774818638676,-670.68982476,0.00017794,2]
[419056547,1774818638685,-670.68982476,0.00017794,2]
[419056549,1774818638694,-670.68982476,0.00017794,2]
[419056550,1774818638703,-670.68982476,0.00017794,2]
[419056552,1774818638712,-35141.52326749,0.00017795,2]
[419056808,1774818641392,-7112.75941948,0.00017795,2]
[419056821,1774818643832,-124083.77758493,0.00017795,2]
[419056822,1774818643843,-43966.37526459,0.00017795,2]
[419056823,1774818643855,-1994.81770619,0.00017795,2]
[419056824,1774818644056,-585.97660249,0.00017795,2]
[419056825,1774818644068,-7374.82932665,0.00017795,2]
[419056831,1774818646982,-638.29172964,0.00017795,2]
[419056832,1774818647016,-8956.29472078,0.00017795,2]
[419056917,1774819832574,-5000.0,0.00012265,2]
[419056919,1774819832583,-5000.0,0.00012389,2]
[419056921,1774819832593,-595.0,0.00012389,2]
[419056922,1774819832602,-1000.0,0.00013699,2]
[419056924,1774819832611,-8566.24210216,0.00015205,2]
[419056926,1774819832623,-305.668248,0.00015205,2]
[419056927,1774819832644,-677.26267608,0.00015205,2]
[419056928,1774819832694,-450.82697376,0.00015205,2]
[419056929,1774819832704,-1000.0,0.00015778,2]
[419056930,1774819832714,-423.72746311,0.00016605,2]
[419056931,1774819832723,-184.0,0.00016669,2]
[419056932,1774819832733,-439.0,0.00016669,2]
[419056933,1774819832742,-2502.44556313,0.00016705,2]
[419056936,1774819838734,-47497.55443687,0.00016705,2]
[419056937,1774819838744,-204.10319,0.00016705,2]
[419056938,1774819838753,-5000.0,0.00016775,2]
[419056939,1774819838763,-441.45932683,0.00016776,2]
[419056940,1774819838772,-546.9169712,0.00016776,2]
[419056941,1774819838782,-546.9169712,0.00016776,2]
[419056942,1774819838792,-546.9169712,0.00016776,2]
[419056943,1774819838801,-546.9169712,0.00016776,2]
[419056944,1774819838811,-546.9169712,0.00016776,2]
[419056945,1774819838820,-546.9169712,0.00016776,2]
[419056946,1774819838829,-546.9169712,0.00016776,2]
[419056947,1774819838839,-546.9169712,0.00016776,2]
[419056948,1774819838849,-546.9169712,0.00016776,2]
[419056949,1774819838858,-546.9169712,0.00016776,2]
[419056950,1774819838867,-546.9169712,0.00016776,2]
[419056951,1774819838876,-546.9169712,0.00016776,2]
[419056952,1774819838885,-546.9169712,0.00016776,2]
[419056953,1774819838895,-303429.70780495,0.00016777,2]
[419056954,1774819838907,-849029.04870317,0.00016777,2]
[419056955,1774819838916,-405.895,0.00016877,2]
[419056956,1774819838926,-500.0,0.00016877,2]
[419056957,1774819838937,-280.3191383,0.000175,13]
[419056958,1774819838946,-1000.0,0.00017995,2]
[419056959,1774819838956,-500.0,0.00018073,2]
[419056960,1774819838965,-1000.0,0.00018097,2]
[419056961,1774819838974,-214154.71299956,0.00018098,2]
[419057198,1774819841439,-814.419644,0.00016608,2]
[419057403,1774819843990,-380.183,0.00016608,2]
[419057411,1774819844056,-1736.91484263,0.00016608,2]
[419057425,1774819844180,-488.57025586,0.00016608,2]
[419058685,1774821031847,-1410.83091649,0.00012389,2]
[419058729,1774821038000,-1322.61187385,0.00012389,2]
[419058736,1774821038063,-2266.55720966,0.00012389,2]
[419058738,1774821038074,-5000.0,0.00012514,2]
[419058740,1774821038083,-599.0,0.0001264,2]
[419058742,1774821038094,-1000.0,0.00013699,2]
[419058745,1774821038104,-458.22475651,0.00016,2]
[419058747,1774821038114,-458.22475649,0.00016,2]
[419058749,1774821038124,-458.22475649,0.00016,2]
[419058751,1774821038134,-914.409048,0.00016555,2]
[419058753,1774821038144,-184.0,0.00016579,2]
[419058755,1774821038154,-2200.0,0.00017,2]
[419058757,1774821038163,-6877.51059819,0.00017,2]
[419058759,1774821038175,-1506.02144817,0.00017,2]
[419058761,1774821038186,-23726.50774562,0.00017,2]
[419058763,1774821038198,-17889.96020802,0.00017,2]
[419058765,1774821038207,-750.41078653,0.00017649,2]
[419058767,1774821038216,-531.31,0.00017749,2]
[419058769,1774821038226,-61564.00068213,0.00018098,2]
[419058771,1774821038236,-151.0,0.00018098,2]
[419058773,1774821038246,-5000.0,0.00018999,2]
[419058775,1774821038256,-24644.4375953,0.00019,2]
[419058777,1774821038265,-750.41078651,0.00019035,2]
[419058779,1774821038275,-787.0,0.00019079,5]
[419058782,1774821038285,-509.0,0.00019079,5]
[419058784,1774821038295,-602.0,0.00019092,5]
[419058786,1774821038304,-500.0,0.00019178,2]
[419058788,1774821038313,-539.10094254,0.00019178,2]
[419058790,1774821038323,-200.0,0.00019178,2]
[419058792,1774821038332,-200.0,0.00019178,2]
[419058794,1774821038341,-207.09,0.00019178,2]
[419058796,1774821038351,-180.0180018,0.00019475,2]
[419058798,1774821038360,-184.0,0.00019579,2]
[419058800,1774821038369,-1000.0,0.00019587,5]
[419058802,1774821038378,-151.0,0.00019595,2]
[419058803,1774821038388,-371.0,0.000198,2]
[419058805,1774821038398,-1738.989441,0.000198,5]
[419058807,1774821038407,-1000.0,0.0001982,5]
[419058809,1774821038417,-1000.0,0.0001984,5]
[419058811,1774821038427,-1000.0,0.0001986,5]
[419058814,1774821038436,-1000.0,0.0001988,5]
[419058816,1774821038446,-1000.0,0.000199,5]
[419058818,1774821038456,-1000.0,0.0001992,5]
[419058820,1774821038465,-1000.0,0.0001994,5]
[419058822,1774821038476,-1000.0,0.0001996,5]
[419058823,1774821038487,-1000.0,0.0001998,5]
[419058825,1774821038497,-374.58330138,0.0002,2]
[419058828,1774821038507,-204.35800824,0.0002,2]
[419058830,1774821038517,-1000.0,0.0002,5]
[419058832,1774821038526,-600.0,0.00020022,2]
[419058834,1774821038536,-151.0,0.00020081,2]
[419058836,1774821038545,-204.10319,0.00020129,2]
[419058838,1774821038555,-168.0,0.0002019,120]
[419058839,1774821038564,-750.41078651,0.00020421,2]
[419058841,1774821038573,-5427.0,0.00020546,2]
[419058843,1774821038583,-372.73997724,0.00020653,2]
[419058846,1774821038593,-540.81776495,0.00020653,2]
[419058848,1774821038603,-540.81776495,0.00020653,2]
[419058850,1774821038612,-540.81776495,0.00020653,2]
[419058852,1774821038622,-540.81776495,0.00020653,2]
[419058853,1774821038631,-540.81776495,0.00020653,2]
[419058856,1774821038641,-540.81776495,0.00020653,2]
[419058858,1774821038651,-540.81776495,0.00020653,2]
[419058860,1774821038661,-540.81776495,0.00020653,2]
[419058862,1774821038671,-540.81776495,0.00020653,2]
[419058863,1774821038680,-540.81776495,0.00020653,2]
[419058865,1774821038798,-540.81776495,0.00020653,2]
[419058866,1774821038812,-540.81776495,0.00020653,2]
[419058867,1774821038823,-540.81776495,0.00020653,2]
[419058868,1774821038833,-540.81776495,0.00020653,2]
[419058869,1774821038843,-540.81776495,0.00020653,2]
[419058870,1774821038853,-540.81776495,0.00020653,2]
[419058871,1774821038863,-874.0,0.00020654,2]
[419058872,1774821038872,-874.0,0.00020672,2]
[419058873,1774821038882,-874.0,0.0002086,2]
[419058874,1774821038892,-874.0,0.00020899,2]
[419058875,1774821038902,-874.0,0.00020908,2]
[419058876,1774821038913,-874.0,0.00020933,2]
[419058877,1774821038922,-874.0,0.00020942,2]
[419058878,1774821038932,-151.0,0.00020996,2]
[419058879,1774821038941,-526.23,0.00021,7]
[419058880,1774821038952,-874.0,0.00021014,2]
[419058881,1774821038963,-874.0,0.00021032,2]
[419058882,1774821038973,-874.0,0.00021048,2]
[419058883,1774821038983,-874.0,0.00021082,2]
[419058884,1774821038993,-874.0,0.00021087,2]
[419058885,1774821039003,-874.0,0.00021101,2]
[419058886,1774821039012,-5427.0,0.00021105,2]
[419058887,1774821039022,-874.0,0.00021148,2]
[419058888,1774821039031,-874.0,0.00021165,2]
[419058889,1774821039040,-289.0,0.00021171,2]
[419058890,1774821039051,-874.0,0.00021192,2]
[419058891,1774821039063,-168.0,0.000212,120]
[419058892,1774821039073,-874.0,0.000212,2]
[419058894,1774821039083,-874.0,0.00021218,2]
[419058896,1774821039093,-874.0,0.0002122,2]
[419058897,1774821039102,-874.0,0.00021229,2]
[419058900,1774821039112,-874.0,0.00021302,2]
[419058902,1774821039122,-338.0,0.00021312,120]
[419058903,1774821039132,-5427.0,0.00021488,2]
[419058905,1774821039142,-168.0,0.00021534,5]
[419058908,1774821039152,-241.678973,0.00021744,2]
[419058910,1774821039162,-227.42605427,0.0002178,10]
[419058912,1774821039172,-750.41078651,0.00021807,2]
[419058914,1774821039181,-6338.03773164,0.000219,2]
[419058916,1774821039191,-151.0,0.00021918,2]
[419058918,1774821039200,-151.0,0.00021918,2]
[419058919,1774821039209,-151.0,0.00021918,2]
[419058921,1774821039218,-151.0,0.00021918,2]
[419058924,1774821039228,-151.0,0.00021918,2]
[419058925,1774821039237,-151.0,0.00021918,2]
[419058927,1774821039247,-151.0,0.00021918,2]
[419058930,1774821039257,-239.155502,0.00021918,2]
[419058932,1774821039266,-151.0,0.00021918,2]
[419058934,1774821039276,-151.0,0.00021918,2]
[419058936,1774821039286,-151.0,0.00021918,2]
[419058938,1774821039296,-151.0,0.00021918,2]
[419058940,1774821039306,-151.0,0.00021918,2]
[419058942,1774821039315,-151.0,0.00021918,2]
[419058944,1774821039325,-151.0,0.00021918,2]
[419058946,1774821039335,-151.0,0.00021918,2]
[419058948,1774821039345,-283.756385,0.00021918,2]
[419058950,1774821039355,-449.414475,0.00021918,2]
[419058952,1774821039365,-449.414475,0.00021918,2]
[419058954,1774821039374,-449.414475,0.00021918,2]
[419058956,1774821039383,-449.414475,0.00021918,2]
[419058958,1774821039393,-449.414475,0.00021918,2]
[419058960,1774821039402,-449.414475,0.00021918,2]
[419058961,1774821039413,-449.414475,0.00021918,2]
[419058964,1774821039423,-449.414475,0.00021918,2]
[419058966,1774821039433,-449.414475,0.00021918,2]
[419058968,1774821039443,-449.414475,0.00021918,2]
[419058970,1774821039453,-449.414475,0.00021918,2]
[419058972,1774821039462,-449.414475,0.00021918,2]
[419058974,1774821039471,-449.414475,0.00021918,2]
[419058976,1774821039481,-449.414475,0.00021918,2]
[419058978,1774821039491,-449.414475,0.00021918,2]
[419058980,1774821039501,-449.414475,0.00021918,2]
[419058981,1774821039510,-449.414475,0.00021918,2]
[419058983,1774821039519,-449.414475,0.00021918,2]
[419058985,1774821039529,-449.414475,0.00021918,2]
[419058988,1774821039538,-449.414472,0.00021918,2]
[419058989,1774821039549,-151.0,0.00021918,2]
[419058992,1774821039559,-151.0,0.00021918,2]
[419058994,1774821039569,-151.0,0.00021918,2]